[Event "26th OIBM 2023"]
[Site "Gmund am Tegernsee"]
[Date "2023.10.31"]
[Round "4.23"]
[White "Wyss, Jonas"]
[Black "Lammers, Markus"]
[Result "1-0"]
[ECO "C43"]
[WhiteElo "2265"]
[BlackElo "2336"]
[Annotator "RC"]
[PlyCount "115"]
[EventDate "2023.10.04"]
[EventType "swiss"]
[EventCountry "GER"]
[SourceTitle "playchess.com"]
[Source "ChessBase"]
[SourceQuality "1"]
[TimeControl "40/5400+30:1800+30"]

1. e4 {[%emt 0:00:03]} e5 {[%emt 0:00:06]} 2. Nf3 {[%emt 0:00:17]} Nf6 {[%emt 0:00:05]} 3. d4 {[%emt 0:00:39]} Nxe4 {[%emt 0:00:09]} 4. Bd3 {[%emt 0:00:51]} d5 {[%emt 0:00:06]} 5. Nxe5 {[%emt 0:00:18]} Be7 {[%emt 0:01:18]} 6. O-O {[%emt 0:00:49]} O-O {[%emt 0:00:09]} 7. c4 {[%emt 0:00:44]} c6 {[%emt 0:00:57]} 8. Nc3 {[%emt 0:00:51]} Nxc3 {[%emt 0:01:16]} 9. bxc3 {[%emt 0:00:11]} dxc4 {[%emt 0:02:56]} 10. Bxc4 {[%emt 0:01:36]} Nd7 {[%emt 0:00:21]} 11. Nxd7 {[%emt 0:05:50]} Bxd7 {[%emt 0:01:34]} 12. Re1 {[%emt 0:01:23]} Bd6 {[%emt 0:02:08]} 13. Qh5 {[%emt 0:20:45]} Qf6 {[%emt 0:02:33]} 14. Bg5 {[%emt 0:14:48]} Qf5 {[%emt 0:01:18]} 15. Re3 {[%emt 0:11:06]} h6 {[%emt 0:08:17]} 16. h4 {[%emt 0:00:40]} hxg5 {[%emt 0:04:05]} 17. Bd3 {[%emt 0:00:15]} g6 {[%emt 0:01:39]} 18. Bxf5 {[%emt 0:00:06]} gxh5 {[%emt 0:00:06]} 19. Bxd7 {[%emt 0:00:11]} g4 {[%emt 0:04:50]} 20. Rb1 {[%emt 0:06:14]} Rab8 {[%emt 0:01:59]} 21. g3 {[%emt 0:33:23]} Kg7 {[%emt 1:05:08]} 22. Bf5 {[%emt 0:00:30]} b5 {[%emt 0:00:30]} 23. Kg2 {[%emt 0:00:30]} Kf6 {[%emt 0:00:30]} 24. Be4 {[%emt 0:00:30]} c5 {[%emt 0:00:30]} 25. f3 {[%emt 0:00:00]} b4 {[%emt 0:00:00]} 26. fxg4 {[%emt 0:00:00]} hxg4 {[%emt 0:01:00]} 27. Rf1+ {[%emt 0:00:00]} Kg7 {[%emt 0:00:30]} 28. Rf5 {[%emt 0:00:00]} bxc3 {[%emt 0:00:30]} 29. dxc5 {[%emt 0:02:30]} Rb2+ {[%emt 0:00:30]} 30. Kf1 {[%emt 0:00:00]} Rc8 31. Rxc3 {[%emt 0:00:00]} Rxa2 32. c6 {[%emt 0:00:00]} f6 {[%emt 0:00:00]} 33. Rf2 Rxf2+ {[%emt 0:02:00]} 34. Kxf2 {[%emt 0:00:00]} f5 {[%emt 0:00:30]} 35. Bxf5 {[%emt 0:01:47]} Rf8 {[%emt 0:00:00]} 36. c7 {[%emt 0:00:00]} Rxf5+ 37. Kg2 {[%emt 0:00:01]} Bxc7 {[%emt 0:00:00]} 38. Rxc7+ {[%emt 0:00:12]} Kg6 {[%emt 0:00:00]} 39. Rxa7 Rb5 {[%emt 0:02:30]} 40. Ra4 {[%emt 0:03:30]} Kh5 {[%emt 0:00:30]} 41. Re4 {[%emt 0:30:30]} Rf5 {[%emt 0:30:30]} 42. Rd4 {[%emt 0:00:30]} Ra5 {[%emt 0:00:30]} 43. Kf2 {[%emt 0:00:30]} Re5 {[%emt 0:00:30]} 44. Rd3 {[%emt 0:00:30]} Kg6 {[%emt 0:00:30]} 45. Re3 {[%emt 0:00:00]} Ra5 {[%emt 0:00:00]} 46. Rd3 {[%emt 0:00:00]} Re5 47. Rd6+ {[%emt 0:00:00]} Kh5 48. Rd4 {[%emt 0:00:00]} Rf5+ 49. Ke2 {[%emt 0:00:00]} Re5+ 50. Kd3 {[%emt 0:03:00]} Ra5 {[%emt 0:03:00]} 51. Ke4 {[%emt 0:00:30]} Ra3 {[%emt 0:00:30]} 52. Rd5+ {[%emt 0:00:00]} Kh6 {[%emt 0:00:30]} 53. Kf4 {[%emt 0:01:00]} Ra4+ {[%emt 0:00:30]} 54. Kf5 {[%emt 0:00:30]} Rb4 {[%emt 0:00:30]} 55. Re5 {[%emt 0:00:30]} Kh5 {[%emt 0:00:00]} 56. Re8 Rb5+ {[%emt 0:01:00]} 57. Kf4 {[%emt 0:00:00]} Rb4+ 58. Re4 {[%emt 0:01:30]} 1-0

[Event "26th OIBM 2023"]
[Site "Gmund am Tegernsee"]
[Date "2023.10.31"]
[Round "4.24"]
[White "Kindtner, Ulrich"]
[Black "Kobold, Jonathan"]
[Result "1/2-1/2"]
[ECO "B22"]
[WhiteElo "2199"]
[BlackElo "1901"]
[Annotator "RC"]
[PlyCount "105"]
[EventDate "2023.10.04"]
[EventType "swiss"]
[EventCountry "GER"]
[SourceTitle "playchess.com"]
[Source "ChessBase"]
[SourceQuality "1"]
[TimeControl "40/5400+30:1800+30"]

1. e4 {[%emt 0:00:03]} c5 {[%emt 0:00:14]} 2. c3 {[%emt 0:00:05]} Nf6 {[%emt 0:00:06]} 3. e5 {[%emt 0:00:05]} Nd5 {[%emt 0:00:06]} 4. d4 {[%emt 0:00:05]} cxd4 {[%emt 0:01:19]} 5. cxd4 {[%emt 0:00:06]} d6 {[%emt 0:00:23]} 6. Nf3 {[%emt 0:00:06]} Nc6 {[%emt 0:00:17]} 7. a3 {[%emt 0:00:05]} e6 {[%emt 0:07:00]} 8. Bd3 {[%emt 0:00:37]} Be7 {[%emt 0:05:50]} 9. O-O {[%emt 0:00:10]} O-O {[%emt 0:09:05]} 10. Re1 {[%emt 0:00:17]} f6 {[%emt 0:01:25]} 11. exf6 {[%emt 0:02:19]} Bxf6 {[%emt 0:04:47]} 12. Nc3 {[%emt 0:04:08]} Nxc3 {[%emt 0:00:27]} 13. bxc3 {[%emt 0:00:05]} e5 {[%emt 0:03:33]} 14. Bc2 {[%emt 0:16:56]} Re8 {[%emt 0:12:24]} 15. Qd3 {[%emt 0:07:49]} g6 {[%emt 0:00:12]} 16. Bh6 {[%emt 0:01:44]} Bf5 {[%emt 0:05:11]} 17. Bb3+ {[%emt 0:00:40]} Kh8 {[%emt 0:04:33]} 18. Qd2 {[%emt 0:01:09]} Na5 {[%emt 0:06:32]} 19. Bf7 {[%emt 0:14:18]} Re7 {[%emt 0:03:06]} 20. Ba2 {[%emt 0:00:06]} Be6 {[%emt 0:01:44]} 21. d5 {[%emt 0:06:02]} Bf5 {[%emt 0:02:39]} 22. Ng5 {[%emt 0:00:43]} Rc8 {[%emt 0:05:38]} 23. Ne4 {[%emt 0:01:32]} Rec7 {[%emt 0:09:35]} 24. Nxf6 {[%emt 0:03:37]} Qxf6 {[%emt 0:00:08]} 25. f4 {[%emt 0:00:53]} e4 {[%emt 0:02:27]} 26. g4 {[%emt 0:02:18]} Bxg4 {[%emt 0:01:59]} 27. Rxe4 {[%emt 0:00:26]} Qxc3 {[%emt 0:01:18]} 28. Rae1 {[%emt 0:02:01]} Kg8 {[%emt 0:01:16]} 29. f5 {[%emt 0:08:36]} Bxf5 {[%emt 0:01:05]} 30. Re8+ {[%emt 0:01:01]} Kf7 {[%emt 0:03:01]} 31. Qxc3 {[%emt 0:08:38]} Rxc3 {[%emt 0:00:36]} 32. R8e7+ {[%emt 0:03:51]} Kf6 {[%emt 0:05:25]} 33. h4 {[%emt 0:00:28]} g5 {[%emt 0:00:46]} 34. Bg7+ {[%emt 0:07:06]} Kg6 {[%emt 0:00:10]} 35. Bxc3 {[%emt 0:01:34]} Rxc3 {[%emt 0:00:07]} 36. Bb1 {[%emt 0:01:05]} Bxb1 {[%emt 0:00:30]} 37. Rxb1 {[%emt 0:00:04]} Rxa3 {[%emt 0:01:18]} 38. hxg5 {[%emt 0:01:20]} Rd3 {[%emt 0:00:32]} 39. Rb5 {[%emt 0:02:01]} Nc4 {[%emt 0:01:02]} 40. Rbxb7 {[%emt 0:03:58]} Rxd5 {[%emt 0:01:23]} 41. Rg7+ {[%emt 0:30:53]} Kh5 {[%emt 0:02:39]} 42. Rxh7+ {[%emt 0:00:00]} Kxg5 {[%emt 0:00:13]} 43. Rxa7 {[%emt 0:00:00]} Ne5 {[%emt 0:01:02]} 44. Kf2 {[%emt 0:00:00]} Kf4 {[%emt 0:03:01]} 45. Ra4+ {[%emt 0:00:00]} Kf5 {[%emt 0:00:32]} 46. Rah4 {[%emt 0:00:00]} Rd3 {[%emt 0:01:37]} 47. Ke2 {[%emt 0:00:00]} Ke6 {[%emt 0:01:39]} 48. R7h6+ {[%emt 0:00:00]} Kd5 {[%emt 0:00:26]} 49. Ra4 {[%emt 0:00:00]} Rc3 {[%emt 0:06:23]} 50. Ra6 {[%emt 0:00:00]} Rc6 {[%emt 0:01:03]} 51. Ra2 {[%emt 0:00:00]} Nc4 {[%emt 0:01:36]} 52. Kf3 {[%emt 0:00:00]} Kc5 {[%emt 0:01:14]} 53. Ke4 {[%emt 0:08:00]} 1/2-1/2

[Event "26th OIBM 2023"]
[Site "Gmund am Tegernsee"]
[Date "2023.10.31"]
[Round "4.25"]
[White "Gold, Florian"]
[Black "Liepold, Stefan"]
[Result "0-1"]
[ECO "D22"]
[WhiteElo "1898"]
[BlackElo "2150"]
[Annotator "RC"]
[PlyCount "54"]
[EventDate "2023.10.04"]
[EventType "swiss"]
[EventCountry "GER"]
[SourceTitle "playchess.com"]
[Source "ChessBase"]
[SourceQuality "1"]
[TimeControl "40/5400+30:1800+30"]

1. d4 {[%emt 0:00:03]} d5 {[%emt 0:00:10]} 2. c4 {[%emt 0:00:04]} dxc4 {[%emt 0:00:13]} 3. Nf3 {[%emt 0:00:08]} Nf6 {[%emt 0:00:12]} 4. e3 {[%emt 0:00:06]} Bg4 {[%emt 0:00:40]} 5. Bxc4 {[%emt 0:00:05]} e6 {[%emt 0:00:07]} 6. Nc3 {[%emt 0:00:04]} Nc6 {[%emt 0:00:46]} 7. h3 {[%emt 0:00:45]} Bh5 {[%emt 0:00:33]} 8. O-O {[%emt 0:00:22]} Bd6 {[%emt 0:02:32]} 9. Be2 {[%emt 0:00:14]} O-O {[%emt 0:02:11]} 10. a3 {[%emt 0:00:13]} a6 {[%emt 0:06:04]} 11. b4 {[%emt 0:01:05]} Qe8 {[%emt 0:13:33]} 12. Bb2 {[%emt 0:00:19]} e5 {[%emt 0:08:46]} 13. dxe5 {[%emt 0:05:23]} Nxe5 {[%emt 0:02:01]} 14. Nd4 {[%emt 0:01:18]} Nc4 {[%emt 0:14:31]} 15. Bc1 {[%emt 0:04:52]} Bxe2 {[%emt 0:01:34]} 16. Qxe2 {[%emt 0:00:49]} b5 {[%emt 0:00:57]} 17. Qc2 {[%emt 0:16:11]} c5 {[%emt 0:22:51]} 18. bxc5 {[%emt 0:07:16]} Bxc5 {[%emt 0:00:16]} 19. Nb3 {[%emt 0:02:22]} Rc8 {[%emt 0:03:36]} 20. Nxc5 {[%emt 0:05:02]} Rxc5 {[%emt 0:00:20]} 21. Bb2 {[%emt 0:07:22]} Qc6 {[%emt 0:02:43]} 22. Rac1 {[%emt 0:01:29]} Rc8 {[%emt 0:05:22]} 23. Rfd1 {[%emt 0:03:26]} h6 {[%emt 0:00:31]} 24. Rd3 {[%emt 0:03:22]} Nxb2 {[%emt 0:01:41]} 25. Qxb2 {[%emt 0:00:03]} Ne4 {[%emt 0:00:17]} 26. Nxe4 {[%emt 0:01:42]} Rxc1+ {[%emt 0:00:15]} 27. Kh2 {[%emt 0:00:01]} Qxe4 {[%emt 0:00:29]} 0-1

[Event "26th OIBM 2023"]
[Site "Gmund am Tegernsee"]
[Date "2023.10.31"]
[Round "4.26"]
[White "Hennig, Konrad"]
[Black "Ammon, Tobias"]
[Result "0-1"]
[ECO "D85"]
[WhiteElo "1887"]
[BlackElo "2145"]
[Annotator "RC"]
[PlyCount "94"]
[EventDate "2023.10.04"]
[EventType "swiss"]
[EventCountry "GER"]
[SourceTitle "playchess.com"]
[Source "ChessBase"]
[SourceQuality "1"]
[TimeControl "40/5400+30:1800+30"]

1. d4 {[%emt 0:00:05]} Nf6 {[%emt 0:00:08]} 2. c4 {[%emt 0:00:10]} g6 {[%emt 0:00:05]} 3. Nc3 {[%emt 0:00:30]} d5 {[%emt 0:00:32]} 4. cxd5 {[%emt 0:01:25]} Nxd5 {[%emt 0:00:05]} 5. Na4 {[%emt 0:01:35]} e5 {[%emt 0:04:19]} 6. dxe5 {[%emt 0:00:28]} Nc6 {[%emt 0:01:27]} 7. e4 {[%emt 0:07:04]} Nb6 {[%emt 0:07:25]} 8. Qxd8+ {[%emt 0:00:28]} Kxd8 {[%emt 0:00:13]} 9. Bg5+ {[%emt 0:00:53]} Be7 {[%emt 0:00:10]} 10. Nxb6 {[%emt 0:06:35]} axb6 {[%emt 0:01:08]} 11. Bf6 {[%emt 0:01:15]} Re8 {[%emt 0:04:52]} 12. O-O-O+ {[%emt 0:04:41]} Bd7 {[%emt 0:00:37]} 13. Bc4 {[%emt 0:02:45]} Bxf6 {[%emt 0:09:42]} 14. exf6 {[%emt 0:00:10]} Rxe4 {[%emt 0:01:48]} 15. Bxf7 {[%emt 0:00:47]} Rf4 {[%emt 0:01:38]} 16. Be6 {[%emt 0:01:43]} Nb8 {[%emt 0:06:05]} 17. Nf3 {[%emt 0:08:13]} Ra5 {[%emt 0:08:17]} 18. Rhe1 {[%emt 0:01:52]} Rxf6 {[%emt 0:01:42]} 19. Bxd7 {[%emt 0:00:40]} Rc5+ {[%emt 0:01:36]} 20. Kb1 {[%emt 0:00:25]} Nxd7 {[%emt 0:00:09]} 21. Ne5 {[%emt 0:00:09]} Rxe5 {[%emt 0:00:43]} 22. Rxe5 {[%emt 0:00:06]} Rxf2 {[%emt 0:00:15]} 23. Red5 {[%emt 0:00:09]} Rf7 {[%emt 0:00:13]} 24. h4 {[%emt 0:06:42]} c6 {[%emt 0:02:17]} 25. Rg5 {[%emt 0:00:55]} Kc7 {[%emt 0:02:26]} 26. g4 {[%emt 0:01:19]} Rf6 {[%emt 0:11:41]} 27. h5 {[%emt 0:01:21]} Re6 {[%emt 0:03:43]} 28. Rf1 {[%emt 0:03:30]} Ne5 {[%emt 0:04:22]} 29. Rxe5 {[%emt 0:19:15]} Rxe5 {[%emt 0:00:16]} 30. Rf7+ {[%emt 0:00:06]} Kb8 {[%emt 0:05:06]} 31. Rxh7 {[%emt 0:00:25]} Rg5 {[%emt 0:08:01]} 32. Rg7 {[%emt 0:01:43]} Rxg4 {[%emt 0:00:08]} 33. Rxg6 {[%emt 0:00:06]} Rh4 {[%emt 0:00:07]} 34. h6 {[%emt 0:00:04]} Rh2 {[%emt 0:00:50]} 35. Rg8+ {[%emt 0:07:44]} Ka7 {[%emt 0:00:14]} 36. Rh8 {[%emt 0:00:09]} Ka6 {[%emt 0:09:26]} 37. a4 {[%emt 0:08:39]} Ka5 {[%emt 0:01:03]} 38. h7 {[%emt 0:02:05]} Kb4 {[%emt 0:00:15]} 39. Kc1 {[%emt 0:01:00]} Kb3 {[%emt 0:01:43]} 40. Kd1 {[%emt 0:06:13]} Kxb2 {[%emt 0:01:10]} 41. Ke1 {[%emt 0:31:12]} Kb3 {[%emt 0:32:32]} 42. Kf1 {[%emt 0:00:21]} c5 {[%emt 0:01:30]} 43. Kg1 {[%emt 0:00:59]} Rh6 {[%emt 0:00:28]} 44. Kf2 {[%emt 0:00:00]} c4 {[%emt 0:00:00]} 45. Ke3 {[%emt 0:00:00]} c3 {[%emt 0:00:00]} 46. Kd3 {[%emt 0:00:00]} Rh3+ {[%emt 0:00:00]} 47. Kd4 {[%emt 0:00:00]} c2 {[%emt 0:00:00]} 0-1

[Event "26th OIBM 2023"]
[Site "Gmund am Tegernsee"]
[Date "2023.10.31"]
[Round "4.27"]
[White "Boehmer, Christian"]
[Black "Oyberman, Mikhail"]
[Result "1-0"]
[ECO "A03"]
[WhiteElo "2178"]
[BlackElo "1819"]
[Annotator "RC"]
[PlyCount "105"]
[EventDate "2023.10.04"]
[EventType "swiss"]
[EventCountry "GER"]
[SourceTitle "playchess.com"]
[Source "ChessBase"]
[SourceQuality "1"]
[TimeControl "40/5400+30:1800+30"]

1. f4 {[%emt 0:00:05]} d5 {[%emt 0:00:08]} 2. Nf3 {[%emt 0:00:14]} c5 {[%emt 0:00:11]} 3. e3 {[%emt 0:01:13]} Nc6 {[%emt 0:00:10]} 4. b3 {[%emt 0:00:25]} Nf6 {[%emt 0:01:10]} 5. Bb2 {[%emt 0:00:17]} e6 {[%emt 0:00:15]} 6. Bb5 {[%emt 0:01:02]} Bd7 {[%emt 0:00:08]} 7. O-O {[%emt 0:00:21]} Bd6 {[%emt 0:00:30]} 8. Bxc6 {[%emt 0:02:30]} Bxc6 {[%emt 0:00:06]} 9. Ne5 {[%emt 0:00:12]} Qc7 {[%emt 0:03:48]} 10. d3 {[%emt 0:01:02]} O-O {[%emt 0:05:06]} 11. Nxc6 {[%emt 0:13:43]} bxc6 {[%emt 0:00:07]} 12. Bxf6 {[%emt 0:01:21]} gxf6 {[%emt 0:00:05]} 13. Nd2 {[%emt 0:03:03]} Kh8 {[%emt 0:12:08]} 14. Qf3 {[%emt 0:08:06]} Rg8 {[%emt 0:08:37]} 15. Rf2 {[%emt 0:02:08]} Rg7 {[%emt 0:02:33]} 16. g3 {[%emt 0:09:20]} Rag8 {[%emt 0:03:33]} 17. Kh1 {[%emt 0:05:00]} Re8 {[%emt 0:08:15]} 18. e4 {[%emt 0:03:08]} Qb7 {[%emt 0:06:53]} 19. Re1 {[%emt 0:03:23]} Rgg8 {[%emt 0:01:16]} 20. Rfe2 {[%emt 0:01:23]} Rd8 {[%emt 0:02:37]} 21. Nf1 {[%emt 0:04:25]} Bc7 {[%emt 0:01:21]} 22. Ne3 {[%emt 0:01:22]} Ba5 {[%emt 0:00:06]} 23. Rg1 {[%emt 0:00:27]} Bc3 {[%emt 0:00:52]} 24. Rf1 {[%emt 0:01:33]} Qd7 {[%emt 0:01:15]} 25. Nd1 {[%emt 0:01:45]} Ba5 {[%emt 0:00:10]} 26. Qh5 {[%emt 0:01:46]} Rde8 {[%emt 0:03:59]} 27. Nf2 {[%emt 0:02:33]} Rg6 {[%emt 0:04:05]} 28. Ng4 {[%emt 0:32:43]} Bd8 {[%emt 0:06:01]} 29. Ne3 {[%emt 0:00:00]} Rg7 {[%emt 0:01:26]} 30. Qf3 {[%emt 0:00:00]} Reg8 {[%emt 0:04:14]} 31. f5 {[%emt 0:00:00]} Rg5 {[%emt 0:00:39]} 32. Rg2 {[%emt 0:00:00]} Qd6 {[%emt 0:00:51]} 33. Rfg1 {[%emt 0:00:00]} Qe5 {[%emt 0:02:33]} 34. h3 {[%emt 0:00:00]} Bc7 {[%emt 0:00:30]} 35. Ng4 {[%emt 0:00:00]} Qd4 {[%emt 0:03:58]} 36. fxe6 {[%emt 0:00:00]} fxe6 {[%emt 0:00:08]} 37. Qxf6+ {[%emt 0:00:00]} Qxf6 {[%emt 0:00:06]} 38. Nxf6 {[%emt 0:00:00]} Rxg3 {[%emt 0:02:06]} 39. Rxg3 {[%emt 0:00:00]} Rxg3 {[%emt 0:00:05]} 40. Rxg3 {[%emt 0:00:00]} Bxg3 {[%emt 0:00:05]} 41. Nd7 {[%emt 0:19:10]} Bd6 {[%emt 0:30:41]} 42. e5 {[%emt 0:00:16]} Bc7 {[%emt 0:00:45]} 43. Kg2 {[%emt 0:01:10]} Kg7 {[%emt 0:01:32]} 44. Kf3 {[%emt 0:00:05]} Kf7 {[%emt 0:00:48]} 45. Kf4 {[%emt 0:00:12]} Ke7 {[%emt 0:00:39]} 46. Nxc5 {[%emt 0:00:15]} Bb6 {[%emt 0:00:01]} 47. d4 {[%emt 0:01:56]} Ba5 {[%emt 0:00:08]} 48. Ke3 {[%emt 0:01:05]} Be1 {[%emt 0:00:20]} 49. Nd3 {[%emt 0:00:20]} Bh4 {[%emt 0:00:09]} 50. Kd2 {[%emt 0:00:21]} Kf7 {[%emt 0:00:25]} 51. Nb4 {[%emt 0:00:25]} Kg6 {[%emt 0:00:08]} 52. Ke3 {[%emt 0:00:24]} Kf5 {[%emt 0:00:09]} 53. Nxc6 {[%emt 0:00:20]} 1-0

[Event "26th OIBM 2023"]
[Site "Gmund am Tegernsee"]
[Date "2023.10.31"]
[Round "4.28"]
[White "Kerpe, Andreas"]
[Black "Langner, Robin"]
[Result "1/2-1/2"]
[ECO "B26"]
[WhiteElo "2157"]
[BlackElo "1803"]
[Annotator "RC"]
[PlyCount "88"]
[EventDate "2023.10.04"]
[EventType "swiss"]
[EventCountry "GER"]
[SourceTitle "playchess.com"]
[Source "ChessBase"]
[SourceQuality "1"]
[TimeControl "40/5400+30:1800+30"]

1. e4 {[%emt 0:00:04]} c5 {[%emt 0:00:05]} 2. Nc3 {[%emt 0:00:03]} d6 {[%emt 0:00:33]} 3. g3 {[%emt 0:00:06]} g6 {[%emt 0:01:00]} 4. Bg2 {[%emt 0:00:04]} Bg7 {[%emt 0:00:07]} 5. d3 {[%emt 0:00:01]} Nc6 {[%emt 0:00:27]} 6. Be3 {[%emt 0:00:23]} Rb8 {[%emt 0:02:19]} 7. Qd2 {[%emt 0:00:09]} b5 {[%emt 0:00:46]} 8. Nge2 {[%emt 0:01:03]} b4 {[%emt 0:01:17]} 9. Nd1 {[%emt 0:00:02]} Nd4 {[%emt 0:00:10]} 10. O-O {[%emt 0:01:03]} h5 {[%emt 0:01:02]} 11. h4 {[%emt 0:06:02]} Nh6 {[%emt 0:02:47]} 12. f3 {[%emt 0:02:53]} a5 {[%emt 0:05:23]} 13. c3 {[%emt 0:16:36]} Nxe2+ {[%emt 0:00:53]} 14. Qxe2 {[%emt 0:00:10]} O-O {[%emt 0:00:12]} 15. Qd2 {[%emt 0:05:53]} Kh7 {[%emt 0:00:28]} 16. Nf2 {[%emt 0:10:23]} a4 {[%emt 0:06:02]} 17. Rab1 {[%emt 0:11:00]} Qb6 {[%emt 0:11:08]} 18. c4 {[%emt 0:02:03]} e5 {[%emt 0:03:57]} 19. Nh3 {[%emt 0:06:27]} Qd8 {[%emt 0:05:23]} 20. Ng5+ {[%emt 0:05:00]} Kh8 {[%emt 0:01:32]} 21. Ne6 {[%emt 0:06:31]} Bxe6 {[%emt 0:01:49]} 22. Bxh6 {[%emt 0:02:32]} Qe7 {[%emt 0:01:18]} 23. Bxg7+ {[%emt 0:05:32]} Kxg7 {[%emt 0:00:16]} 24. f4 {[%emt 0:02:48]} Bg4 {[%emt 0:01:56]} 25. f5 {[%emt 0:02:27]} Qd7 {[%emt 0:00:35]} 26. Kh2 {[%emt 0:02:01]} Ra8 {[%emt 0:02:47]} 27. Bf3 {[%emt 0:02:10]} Bxf3 {[%emt 0:01:14]} 28. Rxf3 {[%emt 0:00:01]} a3 {[%emt 0:00:39]} 29. b3 {[%emt 0:01:31]} Rae8 {[%emt 0:00:05]} 30. Rbf1 {[%emt 0:01:42]} Qd8 {[%emt 0:01:55]} 31. Kg2 {[%emt 0:00:52]} Kh7 {[%emt 0:01:01]} 32. f6 {[%emt 0:01:27]} Rh8 {[%emt 0:04:10]} 33. Rf5 {[%emt 0:02:21]} Reg8 {[%emt 0:00:12]} 34. Qe2 {[%emt 0:00:37]} Qf8 {[%emt 0:00:31]} 35. Rg5 {[%emt 0:01:54]} Qh6 {[%emt 0:01:25]} 36. Qe3 {[%emt 0:00:52]} Re8 {[%emt 0:00:54]} 37. Qf3 {[%emt 0:02:19]} Kg8 {[%emt 0:00:54]} 38. Kh2 {[%emt 0:00:48]} Re6 {[%emt 0:00:10]} 39. Kg2 {[%emt 0:01:17]} Kf8 {[%emt 0:00:38]} 40. Kf2 {[%emt 0:00:42]} Qh7 {[%emt 0:02:28]} 41. Ke2 {[%emt 0:02:25]} Qg8 {[%emt 0:01:00]} 42. Qg2 {[%emt 0:14:52]} Rh6 {[%emt 0:00:29]} 43. Rf3 {[%emt 0:00:34]} Qh8 {[%emt 0:00:12]} 44. Qf2 {[%emt 0:00:16]} Ke8 {[%emt 0:00:30]} 1/2-1/2

[Event "26th OIBM 2023"]
[Site "Gmund am Tegernsee"]
[Date "2023.10.31"]
[Round "4.29"]
[White "Werrn, Pascal"]
[Black "Andrade, Ruben"]
[Result "0-1"]
[ECO "A13"]
[WhiteElo "2145"]
[BlackElo "1797"]
[Annotator "RC"]
[PlyCount "120"]
[EventDate "2023.10.04"]
[EventType "swiss"]
[EventCountry "GER"]
[SourceTitle "playchess.com"]
[Source "ChessBase"]
[SourceQuality "1"]
[TimeControl "40/5400+30:1800+30"]

1. c4 {[%emt 0:00:11]} e6 {[%emt 0:01:09]} 2. Nc3 {[%emt 0:00:52]} d5 {[%emt 0:00:42]} 3. e3 {[%emt 0:00:14]} Nf6 {[%emt 0:00:40]} 4. Nf3 {[%emt 1:31:13]} Be7 {[%emt 0:02:14]} 5. b3 {[%emt 0:00:00]} O-O {[%emt 0:01:20]} 6. Bb2 {[%emt 0:00:00]} b6 {[%emt 0:01:47]} 7. cxd5 {[%emt 0:00:00]} exd5 {[%emt 0:00:26]} 8. Ne2 {[%emt 0:00:00]} Ba6 {[%emt 0:15:02]} 9. Ned4 {[%emt 0:00:00]} Bxf1 {[%emt 0:01:14]} 10. Kxf1 {[%emt 0:00:00]} Ne4 {[%emt 0:06:54]} 11. Ne5 {[%emt 0:00:00]} Bf6 {[%emt 0:09:04]} 12. Ndf3 {[%emt 0:00:00]} Re8 {[%emt 0:06:33]} 13. d3 {[%emt 0:00:00]} Nd6 {[%emt 0:08:44]} 14. g4 {[%emt 0:00:00]} c5 {[%emt 0:07:22]} 15. g5 {[%emt 0:00:00]} Bxe5 {[%emt 0:00:05]} 16. Nxe5 {[%emt 0:00:00]} Nd7 {[%emt 0:00:44]} 17. Ng4 {[%emt 0:00:00]} d4 {[%emt 0:08:38]} 18. Qf3 {[%emt 0:00:00]} Ne5 {[%emt 0:00:20]} 19. Nxe5 {[%emt 0:00:00]} Rxe5 {[%emt 0:00:04]} 20. exd4 {[%emt 0:00:00]} cxd4 {[%emt 0:01:27]} 21. Bxd4 {[%emt 0:00:00]} Rf5 {[%emt 0:00:35]} 22. Qe2 {[%emt 0:00:00]} Rxg5 {[%emt 0:05:44]} 23. Re1 {[%emt 0:00:00]} Qd7 {[%emt 0:05:42]} 24. Qf3 {[%emt 0:00:00]} Rc8 {[%emt 0:04:09]} 25. h4 {[%emt 0:00:00]} Rg4 {[%emt 0:01:53]} 26. Qd5 {[%emt 0:00:01]} Qc6 {[%emt 0:08:58]} 27. Qxc6 {[%emt 0:01:06]} Rxc6 {[%emt 0:00:01]} 28. Be5 {[%emt 0:01:11]} f6 {[%emt 0:01:05]} 29. f3 {[%emt 0:01:16]} Rb4 {[%emt 0:01:15]} 30. Bb2 {[%emt 0:02:31]} Kf7 {[%emt 0:00:41]} 31. Re2 {[%emt 0:01:11]} Nf5 {[%emt 0:00:23]} 32. Kf2 {[%emt 0:02:17]} Rxh4 {[%emt 0:00:23]} 33. Rxh4 {[%emt 0:01:36]} Nxh4 {[%emt 0:00:01]} 34. Kg3 {[%emt 0:01:44]} Nf5+ {[%emt 0:00:04]} 35. Kf4 {[%emt 0:00:02]} g6 {[%emt 0:00:44]} 36. d4 {[%emt 0:00:35]} Ne7 {[%emt 0:01:33]} 37. Rd2 {[%emt 0:00:11]} Nd5+ {[%emt 0:00:44]} 38. Ke4 {[%emt 0:00:02]} Ke6 {[%emt 0:00:22]} 39. Rh2 {[%emt 0:00:11]} Rc7 {[%emt 0:00:37]} 40. a3 {[%emt 0:00:58]} f5+ {[%emt 0:00:32]} 41. Kd3 {[%emt 0:30:01]} Kf6 {[%emt 0:09:00]} 42. Rd2 {[%emt 0:00:00]} g5 {[%emt 0:04:19]} 43. a4 {[%emt 0:00:00]} h5 {[%emt 0:03:21]} 44. Rd1 {[%emt 0:00:00]} Nb4+ {[%emt 0:07:38]} 45. Ke3 {[%emt 0:00:00]} f4+ {[%emt 0:00:11]} 46. Ke2 {[%emt 0:00:00]} Rc2+ {[%emt 0:00:07]} 47. Rd2 {[%emt 0:00:00]} Rxd2+ {[%emt 0:00:08]} 48. Kxd2 {[%emt 0:00:00]} Kf5 {[%emt 0:03:09]} 49. Ke2 {[%emt 0:00:00]} g4 {[%emt 0:00:39]} 50. fxg4+ {[%emt 0:00:00]} hxg4 {[%emt 0:00:05]} 51. Ba3 {[%emt 0:00:22]} a5 {[%emt 0:03:07]} 52. Kf2 {[%emt 0:02:10]} Ke4 {[%emt 0:00:05]} 53. d5 {[%emt 0:00:21]} Kxd5 {[%emt 0:00:16]} 54. Kg2 {[%emt 0:00:10]} Ke4 {[%emt 0:00:08]} 55. Bb2 {[%emt 0:00:29]} Nd3 {[%emt 0:00:47]} 56. Bf6 {[%emt 0:00:13]} f3+ {[%emt 0:00:20]} 57. Kf1 {[%emt 0:00:52]} g3 {[%emt 0:02:23]} 58. Bd8 {[%emt 0:05:10]} g2+ {[%emt 0:00:09]} 59. Kg1 {[%emt 0:00:18]} Nc1 {[%emt 0:00:18]} 60. Bxb6 {[%emt 0:00:53]} Ne2+ {[%emt 0:00:06]} 0-1

[Event "26th OIBM 2023"]
[Site "Gmund am Tegernsee"]
[Date "2023.10.31"]
[Round "4.30"]
[White "Pavlov, Liliane"]
[Black "Manukonda Arun"]
[Result "0-1"]
[ECO "E11"]
[WhiteElo "1702"]
[BlackElo "2143"]
[Annotator "NA RC"]
[PlyCount "38"]
[EventDate "2023.10.04"]
[EventType "swiss"]
[EventCountry "GER"]
[SourceTitle "playchess.com"]
[Source "ChessBase"]
[SourceQuality "1"]
[TimeControl "40/5400+30:1800+30"]

1. d4 {[%emt 0:00:05]} d5 {[%emt 0:00:13]} 2. c4 {[%emt 0:00:13]} e6 {[%emt 0:00:06]} 3. Nf3 {[%emt 0:00:20]} Nf6 {[%emt 0:00:06]} 4. g3 {[%emt 0:00:27]} Bb4+ {[%emt 0:00:52]} 5. Bd2 {[%emt 0:00:40]} Be7 {[%emt 0:00:05]} 6. Nc3 {[%emt 0:01:49]} dxc4 {[%emt 0:01:51]} 7. Qa4+ {[%emt 0:05:48]} c6 {[%emt 0:00:48]} 8. Qxc4 {[%emt 0:00:44]} b5 {[%emt 0:02:36]} 9. Qd3 {[%emt 0:02:53]} b4 {[%emt 0:06:31]} 10. Ne4 {[%emt 0:10:22]} a5 {[%emt 0:09:03]} 11. Rc1 {[%emt 0:07:32]} Ba6 {[%emt 0:04:15]} 12. Qc2 {[%emt 0:01:23]} Qd5 {[%emt 0:24:52]} 13. Nc5 {[%emt 0:17:37]} Bxc5 {[%emt 0:07:02]} 14. Qxc5 {[%emt 0:05:38]} Qxa2 {[%emt 0:09:15]} 15. Qg5 {[%emt 0:22:06]} O-O {[%emt 0:01:51]} 16. Bf4 {[%emt 0:06:50]} Nbd7 {[%emt 0:07:38]} 17. Ne5 {[%emt 0:09:55]} Ne4 {[%emt 0:08:39]} 18. Qh5 {[%emt 0:01:45]} Ndf6 {[%emt 0:01:47]} 19. Qf3 {[%emt 0:00:30]} Qxb2 {[%emt 0:01:32]} 0-1